bitfinex/quotes_BTCUSD_20251230
["timestamp","ask_amount","ask_price","bid_price","bid_amount"]
[1767105114910,0.01818792,88008.0,87993.0,0.00055737]
[1767105114911,0.01136324,88003.0,87993.0,0.00055737]
[1767105115112,0.01136389,87998.0,87993.0,0.00055737]
[1767105115312,0.01818792,87994.0,87993.0,8.37e-06]
[1767105115635,0.01818792,87994.0,87986.0,0.00031538]
[1767105115809,0.01136376,87999.0,87986.0,0.00042264]
[1767105116008,0.55398325,88000.0,87986.0,0.00042264]
[1767105116210,0.01152,88001.0,87994.0,0.01136441]
[1767105116420,0.0002,88003.0,87999.0,0.01136376]
[1767105116619,0.0002,88003.0,88001.0,0.000549]
[1767105116836,0.0002,88003.0,87992.0,0.05682311]
[1767105117039,0.0002,88003.0,87994.0,0.01136441]
[1767105117240,0.0002,88003.0,87995.0,0.01136428]
[1767105117461,0.0002,88003.0,87994.0,0.01136441]
[1767105117709,0.02288221,88011.0,87996.0,0.01136415]
[1767105117911,0.01136273,88007.0,87991.0,0.02288479]
[1767105118112,0.01136286,88006.0,87991.0,0.02288479]
[1767105118330,0.00055,87991.0,87979.0,0.06819758]
[1767105118605,0.00055,87991.0,87971.0,0.22734584]
[1767105118606,0.01136479,87991.0,87983.0,0.01172]
[1767105118748,0.01136466,87992.0,87983.0,0.01172]
[1767105118950,0.02191958,87991.0,87983.0,0.01172]
[1767105119144,0.01055479,87990.0,87983.0,0.0002]
[1767105119436,0.01818792,87994.0,87983.0,0.0002]
[1767105119638,0.01054785,87993.0,87983.0,0.0002]
[1767105119852,0.01054785,87992.0,87983.0,0.0002]
[1767105120049,0.01054785,87991.0,87983.0,0.0002]
[1767105120264,0.01152,88001.0,87991.0,0.000349]
[1767105120472,0.01054658,88000.0,87995.0,0.01136428]
[1767105120663,0.01818792,88022.0,87995.0,0.01136428]
[1767105120664,0.01152,88007.0,87995.0,0.01136428]
[1767105120819,0.02873062,88006.0,87987.0,0.01152]
[1767105121042,0.0105427,88005.0,87991.0,0.01136479]
[1767105121242,0.0105427,88004.0,87987.0,0.01152]
[1767105121405,0.55398325,88000.0,87983.0,0.0002]
[1767105121623,0.55398325,88000.0,87962.0,0.04544]
[1767105121624,0.06819808,87979.0,87962.0,0.04544]
[1767105121827,0.01818792,87992.0,87962.0,0.04544]
[1767105121828,0.01152,87987.0,87979.0,0.000305]
[1767105122067,0.01053622,87986.0,87984.0,0.05682807]
[1767105122270,0.01152,88003.0,87990.0,0.05682455]
[1767105122473,0.01152,88003.0,87999.0,0.01136376]
[1767105122672,0.01152,88003.0,87996.0,0.05682054]
[1767105122673,0.01152,88003.0,87998.0,0.01136389]
[1767105122886,0.01136131,88018.0,88003.0,0.01136324]
[1767105123054,0.01152,88017.0,88005.0,0.01136299]
[1767105123285,0.22720418,88027.0,88003.0,0.0117753]
[1767105123286,0.01189979,88029.0,88011.0,0.01136221]
[1767105123483,0.0005399,88029.0,88014.0,0.01136182]
[1767105123692,0.0005399,88029.0,88026.0,0.01136027]
[1767105123898,0.0005399,88029.0,88028.0,0.0568001]
[1767105124275,0.0005399,88029.0,88014.0,0.01152]
[1767105124276,0.000244,88028.0,88015.0,0.01136169]
[1767105124490,0.000244,88028.0,88016.0,0.01136157]
[1767105124709,0.0005399,88029.0,88023.0,0.01136066]
[1767105124940,0.05678742,88048.0,88019.0,0.55398325]
[1767105125176,0.01818792,88071.0,88019.0,0.55398325]
[1767105125177,0.0002,88039.0,88028.0,0.01136002]
[1767105125408,0.0002,88039.0,88027.0,0.01136015]
[1767105125636,0.0002,88039.0,88033.0,0.01135937]
[1767105125842,0.0002,88039.0,88037.0,0.0567943]
[1767105126013,0.0002,88039.0,88036.0,0.01135898]
[1767105126014,0.01152,88050.0,88041.0,0.01135834]
[1767105126158,0.48058127,88057.0,88044.0,0.01135795]
[1767105126356,0.01818792,88056.0,88040.0,0.01152]
[1767105126552,0.01818792,88056.0,88038.0,0.01135873]
[1767105126553,0.000549,88040.0,88032.0,0.0113595]
[1767105126799,0.0003576,88040.0,88034.0,0.01135924]
[1767105126998,0.0003576,88040.0,88035.0,0.01135911]
[1767105127206,0.01135731,88049.0,88027.0,0.01152]
[1767105127207,0.01135602,88059.0,88042.0,0.01135821]
[1767105127379,0.02981515,88056.0,88043.0,0.01135808]
[1767105127744,0.000549,88043.0,88034.0,0.01152]
[1767105127893,0.01135757,88047.0,88034.0,0.01152]
[1767105128106,0.0002,88050.0,88047.0,0.01135757]
[1767105128679,1e-08,88050.0,88047.0,0.01135757]
[1767105128890,0.000549,88047.0,88034.0,0.01135924]
[1767105129098,0.000549,88047.0,88032.0,0.05679693]
[1767105129099,1e-08,88050.0,88037.0,0.01135886]
[1767105129426,1e-08,88050.0,88036.0,0.05679494]
[1767105129427,1e-08,88050.0,88047.0,0.06814511]
[1767105129549,1e-08,88050.0,88047.0,0.07966511]
[1767105129731,1e-08,88050.0,88047.0,0.01152]
[1767105129931,1e-08,88050.0,88047.0,0.010971]
[1767105130134,1e-08,88050.0,88044.0,0.01152]
[1767105130660,1e-08,88050.0,88038.0,0.02287873]
[1767105130880,1e-08,88050.0,88038.0,0.01152]
[1767105131077,1e-08,88050.0,88038.0,0.02287873]
[1767105131279,1e-08,88050.0,88038.0,0.07967224]
[1767105131486,1e-08,88050.0,88041.0,0.01135834]
[1767105131806,1e-08,88050.0,88038.0,0.07967224]
[1767105131807,1e-08,88050.0,88038.0,0.02287873]
[1767105131962,1e-08,88050.0,88047.0,0.01135757]
[1767105132161,1e-08,88050.0,88048.0,0.0567872]
[1767105132746,1e-08,88050.0,88046.0,0.02287769]
[1767105132950,1e-08,88050.0,88047.0,0.06814542]
[1767105133397,0.01152,88070.0,88057.0,0.0681376]
[1767105133588,0.0002,88066.0,88054.0,0.01135666]
[1767105133795,0.22707259,88078.0,88054.0,0.01135666]
[1767105133800,0.0002,88085.0,88070.0,0.0113546]
[1767105134043,0.0002,88085.0,88069.0,0.56533798]
[1767105134044,0.0002767,88079.0,88069.0,0.56533798]
[1767105134164,0.0002767,88079.0,88071.0,0.01135447]
[1767105134369,0.0002767,88079.0,88067.0,0.05677444]
[1767105134574,0.01135421,88073.0,88065.0,0.01152]
[1767105134814,0.01135421,88073.0,88051.0,0.01135705]
[1767105134815,0.01135512,88066.0,88053.0,0.01152]
[1767105135038,0.01818792,88078.0,88053.0,0.01152]
[1767105135039,0.01135499,88067.0,88053.0,0.01152]
[1767105135184,0.01135524,88065.0,88053.0,0.01152]
[1767105135382,0.05677937,88061.0,88046.0,0.01172]
[1767105135570,0.01135512,88066.0,88050.0,0.01135718]
[1767105135964,0.0113537,88077.0,88066.0,0.001099]
[1767105136175,0.01152,88071.0,88066.0,0.001099]
[1767105136397,0.01163014,88079.0,88076.0,0.01135383]
[1767105136398,0.0002767,88079.0,88076.0,0.01135383]
[1767105136515,0.0002,88085.0,88073.0,0.01135421]
[1767105136727,0.0002,88085.0,88076.0,0.01135383]
[1767105136931,0.0002,88085.0,88066.0,0.01152]
[1767105137346,0.01135357,88078.0,88066.0,0.01152]
[1767105137555,0.01135344,88079.0,88066.0,0.01152]
[1767105137772,0.0113537,88077.0,88066.0,0.01152]
[1767105138091,0.01135524,88065.0,88051.0,0.01152]
[1767105138290,0.01152,88069.0,88056.0,0.0113564]
[1767105138522,0.010971,88069.0,88065.0,0.01135524]
[1767105138794,0.01135318,88081.0,88063.0,0.0113555]
[1767105138795,0.01152,88074.0,88063.0,0.0113555]
[1767105138995,0.01152,88080.0,88065.0,0.01135524]
[1767105139147,0.01135357,88078.0,88061.0,0.01135576]
[1767105139324,0.01818792,88073.0,88061.0,0.01135576]
[1767105139512,0.01818792,88073.0,88062.0,0.01135563]
[1767105139729,0.01152,88080.0,88068.0,0.01135486]
[1767105139927,0.000549,88068.0,88056.0,0.0113564]
[1767105140246,0.01818792,88066.0,88053.0,0.01135679]
[1767105140440,0.01818792,88066.0,88050.0,0.06814275]
[1767105140648,0.01818792,88066.0,88053.0,0.01135679]
[1767105140825,0.01818792,88072.0,88066.0,0.00055]
[1767105141046,0.01818792,88072.0,88055.0,0.06813922]
[1767105141447,0.01818792,88072.0,88058.0,0.01135615]
[1767105141808,0.01818792,88073.0,88059.0,0.01135602]
[1767105142248,0.01818792,88073.0,88061.0,0.01135576]
[1767105142729,0.01135357,88078.0,88064.0,0.01135537]
[1767105143189,0.01135344,88079.0,88065.0,0.01135524]
[1767105143411,0.01152,88080.0,88065.0,0.01135524]
[1767105143617,0.01135344,88079.0,88064.0,0.01135537]
[1767105144097,0.01135602,88059.0,88043.0,0.01135808]
[1767105144315,0.01135524,88065.0,88051.0,0.02298428]
[1767105144539,0.01135524,88065.0,88051.0,0.01162723]
[1767105144766,0.22707394,88078.0,88051.0,0.01162723]
[1767105144767,0.05676659,88080.0,88063.0,0.0113555]
[1767105145007,0.01152,88079.0,88065.0,0.01190524]
[1767105145219,0.01152,88080.0,88067.0,0.01135499]
[1767105145663,0.01152,88080.0,88063.0,0.05677723]
[1767105145664,0.000549,88067.0,88052.0,0.01135692]
[1767105145874,0.01135408,88074.0,88059.0,0.01135602]
[1767105146098,0.01135344,88079.0,88061.0,0.06813442]
[1767105146318,0.02974059,88085.0,88060.0,0.55398325]
[1767105146540,0.01152,88079.0,88071.0,0.05677237]
[1767105146765,0.01152,88079.0,88074.0,0.01135408]
[1767105146988,0.000549,88074.0,88064.0,0.01135537]
[1767105147206,0.000549,88074.0,88050.0,0.55398325]
[1767105147207,0.01135589,88060.0,88043.0,0.01135808]
[1767105147472,0.01135589,88060.0,88033.0,0.16926]
[1767105147473,0.01135666,88054.0,88044.0,0.01152]
[1767105147687,0.05678398,88053.0,88035.0,0.01152]
[1767105147905,0.05678398,88053.0,88046.0,0.00010722]
[1767105147906,0.01135731,88049.0,88046.0,0.00010722]
[1767105148124,0.00010707,88049.0,88046.0,2.2e-07]
[1767105148804,0.01146438,88049.0,88046.0,2.2e-07]
[1767105149020,0.01146438,88049.0,88004.0,0.00056444]
[1767105149021,0.01136015,88027.0,88009.0,0.0681746]
[1767105149234,0.01136027,88026.0,88012.0,0.01136208]
[1767105149447,0.01152,88028.0,88016.0,0.0002]
[1767105149660,0.02288002,88028.0,88016.0,0.0002]
[1767105149888,0.01136027,88026.0,88016.0,0.0002]
[1767105150113,0.01152,88028.0,88016.0,0.0002]
[1767105150335,0.01152,88028.0,88022.0,0.01136079]
[1767105150560,0.01152,88028.0,88016.0,0.0002]
[1767105150561,0.0002,88036.0,88028.0,0.000107]
[1767105150790,0.01152,88043.0,88037.0,0.01135886]
[1767105151005,0.01152,88043.0,88040.0,0.01135847]
[1767105151268,0.01152,88052.0,88043.0,0.01135808]
[1767105151439,0.01152,88052.0,88039.0,0.06815141]
[1767105151440,0.01152,88052.0,88039.0,0.0113586]
[1767105151593,0.01152,88052.0,88038.0,0.01135873]
[1767105151809,0.01152,88052.0,88040.0,0.01135847]
[1767105152212,0.02287692,88052.0,88039.0,0.0113586]
[1767105152409,0.01135705,88051.0,88038.0,0.01135873]
[1767105152610,0.01152,88052.0,88040.0,0.01135847]
[1767105152837,0.01152,88050.0,88039.0,0.0113586]
[1767105153010,0.01152,88050.0,88038.0,0.01135873]
[1767105153375,0.01152,88050.0,88036.0,0.05699467]
[1767105153376,9.2e-05,88038.0,88036.0,0.0002]
[1767105153532,0.01135937,88033.0,88016.0,0.01167755]
[1767105153692,0.01135937,88033.0,88017.0,0.01136144]
[1767105153898,0.01135911,88035.0,88020.0,0.01136105]
[1767105154156,0.01135937,88033.0,88017.0,0.01136144]
[1767105154320,0.01152,88038.0,88024.0,0.01136053]
[1767105154683,0.01152,88038.0,88026.0,0.01136027]
[1767105154795,0.02970792,88038.0,88026.0,0.01136027]
[1767105154999,0.01152,88038.0,88030.0,0.01135976]
[1767105155228,0.01152,88040.0,88031.0,0.01135963]
[1767105155433,0.01152,88050.0,88042.0,0.01135821]
[1767105155636,0.01152,88050.0,88037.0,0.01135886]
[1767105155845,9.2e-05,88042.0,88033.0,0.01135937]
[1767105156063,0.01146438,88049.0,88035.0,0.01135911]
[1767105156235,0.00010707,88049.0,88037.0,0.01135886]
[1767105156441,0.00010707,88049.0,88032.0,0.23871]
[1767105156442,0.00010707,88049.0,88046.0,0.01135769]
[1767105156697,9.2e-05,88046.0,88038.0,0.06815238]
[1767105156832,9.2e-05,88046.0,88032.0,0.0228795]
[1767105157032,9.2e-05,88046.0,88035.0,0.06815413]
[1767105157233,7e-08,88049.0,88036.0,0.01135898]
[1767105157576,7e-08,88049.0,88027.0,0.02288015]
[1767105157577,0.00055,88036.0,88027.0,0.02288015]
[1767105157776,0.01135808,88043.0,88029.0,0.01135989]
[1767105158089,0.01135821,88042.0,88028.0,0.01136002]
[1767105158458,0.01135834,88041.0,88027.0,0.02288015]
[1767105158622,0.01135834,88041.0,87976.0,0.14296878]
[1767105158623,0.01135989,88029.0,87980.0,0.2]
[1767105158844,0.01136092,88021.0,88006.0,0.01152]
[1767105159062,0.05680378,88023.0,88009.0,0.01136247]
[1767105159063,0.01136079,88022.0,88009.0,0.01136247]
[1767105159269,0.01136079,88022.0,88008.0,0.0113626]
[1767105159489,0.01818792,88025.0,88011.0,0.01136221]
[1767105159692,0.01818792,88025.0,88016.0,5.5e-07]
[1767105159693,0.01136105,88020.0,88016.0,5.5e-07]
[1767105159947,0.01818792,88025.0,88004.0,0.01192755]
[1767105159948,0.01136195,88013.0,88004.0,0.00056444]
[1767105160140,0.01136208,88012.0,88006.0,0.0002]
[1767105160298,0.01171882,88013.0,88006.0,0.000158]
[1767105160734,0.00035687,88013.0,88006.0,0.000158]
[1767105160941,0.01152,88019.0,88013.0,0.000356]
[1767105161145,0.01152,88019.0,88013.0,0.000463]
[1767105161339,0.01152,88019.0,88013.0,0.000107]
[1767105161783,0.01818792,88025.0,88013.0,0.01146895]
[1767105161986,0.0002,88026.0,88023.0,0.01136066]
[1767105162110,0.01135808,88043.0,88027.0,0.01136015]
[1767105162311,0.02954471,88053.0,88037.0,0.01135886]
[1767105162514,0.02954471,88053.0,88021.0,0.23873552]
[1767105162515,0.01152,88052.0,88041.0,0.01135834]
[1767105162722,0.01152,88051.0,88033.0,0.01135937]
[1767105162934,0.05679196,88041.0,88029.0,0.01152]
[1767105163142,0.01135795,88044.0,88030.0,0.01135976]
[1767105163339,0.01818792,88038.0,88029.0,0.01152]
[1767105163533,0.01152,88040.0,88027.0,0.01136015]
[1767105163792,0.01152,88040.0,88027.0,0.01146715]
[1767105163923,0.01152,88040.0,88027.0,0.000107]
[1767105164121,0.02287847,88040.0,88027.0,0.000107]
[1767105164331,0.01152,88040.0,88029.0,0.01135989]
[1767105164541,0.01152,88040.0,88027.0,0.000107]
[1767105164735,0.01152,88040.0,88027.0,0.01146715]
[1767105165157,0.01152,88040.0,88029.0,0.01135989]
[1767105165361,0.01152,88040.0,88030.0,0.01135976]
[1767105165558,0.01152,88040.0,88029.0,0.01135989]
[1767105165783,0.00055,88029.0,88027.0,0.000107]
[1767105166001,0.02954652,88039.0,88027.0,0.000107]
[1767105166361,0.01135873,88038.0,88027.0,0.000107]
[1767105166978,0.02954652,88039.0,88027.0,0.000107]
[1767105167294,0.01135873,88038.0,88027.0,0.000107]
[1767105167780,0.01136208,88012.0,88002.0,0.0004373]
[1767105167902,0.01136234,88010.0,88002.0,0.0004373]
[1767105168105,0.01136221,88011.0,88002.0,0.0004373]
[1767105168300,0.02955,88012.0,88002.0,0.0004373]
[1767105168508,0.01136247,88009.0,88004.0,0.00027944]
[1767105168757,0.01136221,88011.0,88004.0,0.00027944]
[1767105169162,0.02955,88012.0,88004.0,0.00027944]
[1767105169494,0.01136273,88007.0,88004.0,0.00023803]
[1767105169691,0.01136234,88010.0,88004.0,0.00023803]
[1767105169827,0.01136221,88011.0,88004.0,0.00023803]
[1767105170210,0.05681172,88010.0,88004.0,0.00023803]
[1767105170453,0.01136234,88010.0,88004.0,0.00023803]
[1767105170657,0.01172,88014.0,88004.0,0.00023803]
[1767105170658,0.01136195,88013.0,88004.0,0.00023803]
[1767105170966,0.01136234,88010.0,88004.0,0.00023803]
[1767105171171,0.01136221,88011.0,88004.0,0.00023803]
[1767105171713,0.01136208,88012.0,88004.0,0.00023803]
[1767105172232,0.01182703,88014.0,88004.0,0.00023803]
[1767105172433,0.02318885,88014.0,88004.0,0.00023803]
[1767105172979,0.01182703,88014.0,88004.0,0.00023803]
[1767105173152,0.01182703,88014.0,88012.0,0.05680991]
[1767105173153,1e-08,88014.0,88012.0,0.05680991]
[1767105173332,0.0002,88037.0,88004.0,0.01160114]
[1767105173333,0.01152,88029.0,88022.0,0.01136079]
[1767105173723,0.01152,88029.0,88020.0,0.05680518]
[1767105173724,0.01135937,88033.0,88020.0,0.01136105]
[1767105173978,0.01152,88032.0,88019.0,0.01136118]
[1767105174375,0.01152,88032.0,88021.0,0.01136092]
[1767105174579,0.01152,88032.0,88022.0,0.01136079]
[1767105174891,0.01152,88032.0,88020.0,0.01136105]
[1767105175113,0.01152,88032.0,88023.0,0.01136066]
[1767105175463,0.01152,88032.0,88022.0,0.01136079]
[1767105175582,0.01152,88032.0,88023.0,0.01136066]
[1767105175780,0.01152,88032.0,88019.0,0.05680538]
[1767105175781,0.0002,88037.0,88032.0,0.0118015]
[1767105176005,0.0002,88037.0,88031.0,0.01135963]
[1767105176408,0.0002,88037.0,88032.0,0.0113595]
[1767105176613,0.0002,88037.0,88034.0,0.01135924]
[1767105176809,0.0002,88037.0,88031.0,0.01135963]
[1767105177139,0.0002,88037.0,88029.0,0.01135989]
[1767105177658,0.0002,88037.0,88031.0,0.01135963]
[1767105177864,0.0002,88037.0,88030.0,0.01135976]
[1767105178177,0.0002,88037.0,88028.0,0.01136002]
[1767105178400,0.22712271,88059.0,88038.0,0.01135873]
[1767105178602,0.35882975,88070.0,88038.0,0.01135873]
[1767105178603,0.02212844,88052.0,88041.0,0.01135834]
[1767105178737,0.000549,88041.0,88033.0,0.01135937]
[1767105178943,0.000549,88041.0,88029.0,0.01135989]
[1767105179144,0.01135847,88040.0,88027.0,0.01136015]
[1767105179344,0.01135834,88041.0,88026.0,0.06816155]
[1767105179546,0.01135834,88041.0,88026.0,0.01136027]
[1767105179759,0.01135847,88040.0,88027.0,0.01136015]
[1767105179996,0.01135834,88041.0,88027.0,0.01136015]
[1767105180227,0.01152,88044.0,88013.0,0.16489]
[1767105180398,0.01152,88049.0,88040.0,0.01135847]
[1767105180573,0.01152,88049.0,88043.0,0.01135808]
[1767105180783,0.01152,88049.0,88040.0,0.01135847]
[1767105180784,0.01135769,88046.0,87970.0,3.24611189]
[1767105180984,0.01152,88049.0,88030.0,0.01135976]
[1767105180985,0.000549,88043.0,88030.0,0.01135976]
[1767105181182,0.01190708,88043.0,88023.0,0.01136066]
[1767105181363,0.01152,88049.0,88002.0,0.0004373]
[1767105181364,0.00055,88028.0,88013.0,0.01136195]
[1767105181569,0.00055,88028.0,88015.0,0.01136169]
[1767105181745,0.01152,88033.0,88021.0,0.01136092]
[1767105182204,0.01152,88033.0,88020.0,0.01136105]
[1767105182434,0.01152,88033.0,88022.0,0.05680398]
[1767105182647,0.01152,88033.0,87990.0,0.01136492]
[1767105182648,0.01136273,88007.0,87990.0,0.01136492]
[1767105182795,0.01136273,88007.0,87983.0,0.10212055]
[1767105182796,0.01136234,88010.0,87995.0,0.01152]
[1767105182994,0.02954987,88013.0,87999.0,0.01136376]
[1767105183195,0.01136182,88014.0,88001.0,0.0113635]
[1767105183401,0.81271897,88020.0,87995.0,0.01152]
[1767105183402,0.01135898,88036.0,88000.0,0.81271897]
[1767105183603,0.0113586,88039.0,88021.0,0.01136092]
[1767105183852,0.02954613,88042.0,88025.0,0.0113604]
[1767105183853,0.02287873,88038.0,88025.0,0.0113604]
[1767105184006,0.01135911,88035.0,88019.0,0.06816686]
[1767105184210,0.01162713,88038.0,88022.0,0.01136079]
[1767105184211,0.000549,88025.0,88022.0,0.01136079]
[1767105184409,0.01162713,88038.0,88016.0,0.05680741]
[1767105184410,0.00010713,88038.0,88028.0,0.06815952]
[1767105184613,0.0002,88035.0,88032.0,0.0113595]
[1767105184822,0.0002,88035.0,88020.0,0.81271897]
[1767105184823,0.0115564,88056.0,88035.0,0.0002]
[1767105185061,0.01135653,88055.0,88041.0,0.01135834]
[1767105185300,0.01135679,88053.0,88039.0,0.0113586]
[1767105185579,0.02287653,88055.0,88040.0,0.05679236]
[1767105185580,0.04106445,88055.0,88040.0,0.05679236]
[1767105185792,0.04106445,88055.0,88032.0,0.22718785]
[1767105185793,0.01135744,88048.0,88034.0,0.01135924]
[1767105185959,0.01135821,88042.0,88034.0,0.00010713]
[1767105186188,0.01135757,88047.0,88034.0,0.00010713]
[1767105186335,0.01135821,88042.0,88034.0,0.00010713]
[1767105186535,0.01135834,88041.0,88034.0,0.00010713]
[1767105186778,0.01135821,88042.0,88034.0,0.00010713]
[1767105186953,0.06814624,88046.0,88034.0,0.00010713]
[1767105187159,0.02954445,88055.0,88034.0,0.00010713]
[1767105187338,0.01818792,88052.0,88038.0,0.06815185]
[1767105187532,0.01135718,88050.0,88034.0,0.01146637]
[1767105187790,0.01135795,88044.0,88034.0,0.00010713]
[1767105187947,0.06814422,88049.0,88034.0,0.00010713]
[1767105188151,0.01135692,88052.0,88035.0,0.05679559]
[1767105188370,0.01818792,88053.0,88039.0,0.0113586]
[1767105188594,0.01152,88053.0,88039.0,0.0113586]
[1767105188751,0.01152,88053.0,88036.0,0.01135898]
[1767105188983,0.01152,88053.0,88042.0,0.01135821]
[1767105189184,0.01152,88053.0,88039.0,0.0113586]
[1767105189185,0.01152,88053.0,88041.0,0.01135834]
[1767105189387,0.01152,88053.0,88036.0,0.06815368]
[1767105189388,0.01135705,88051.0,88037.0,0.01135886]
[1767105189628,0.0567898,88044.0,88034.0,0.00010713]
[1767105189851,0.00055,88037.0,88034.0,0.00010713]
[1767105190054,0.01135821,88042.0,88034.0,0.00010713]
[1767105190388,0.0113586,88039.0,88034.0,0.00010713]
[1767105190595,0.01135873,88038.0,88034.0,1.3e-07]
[1767105190768,0.05679555,88036.0,88034.0,1.3e-07]
[1767105191597,0.05679555,88036.0,88016.0,0.05680771]
[1767105191598,0.01818792,88041.0,88015.0,0.0002]
[1767105191872,0.01136118,88019.0,88015.0,0.0002]
[1767105192085,0.01136131,88018.0,88015.0,0.0002]
[1767105192278,0.06816842,88018.0,88015.0,0.0002]
[1767105192484,0.01136363,88000.0,87994.0,0.0002]
[1767105192701,0.01136324,88003.0,87994.0,0.0002]
[1767105192894,0.01136363,88000.0,87994.0,0.0002]
[1767105193101,0.01136363,88000.0,87985.0,0.01136557]
[1767105193323,0.0002,88004.0,88000.0,0.000106]
[1767105193541,0.0002,88004.0,87985.0,0.0568274]
[1767105193542,0.0113635,88001.0,87986.0,0.01136544]
[1767105193663,0.01156311,88004.0,87989.0,0.01136505]
[1767105193864,0.01156311,88004.0,87984.0,0.0002]
[1767105193865,0.0002,88004.0,87993.0,0.01136454]
[1767105194081,0.01152,88004.0,87993.0,0.01136454]
[1767105194441,0.01152,88004.0,87995.0,0.01136428]
[1767105194636,0.06816903,88017.0,88002.0,0.01136337]
[1767105194811,0.01152,88016.0,88004.0,0.01136311]
[1767105194978,0.01152,88016.0,88003.0,0.01136324]
[1767105195180,0.02288157,88016.0,88002.0,0.01136337]
[1767105195401,0.01136105,88020.0,88001.0,0.0113635]
[1767105195617,0.01136118,88019.0,88002.0,0.05681689]
[1767105195962,0.01136144,88017.0,88003.0,0.01136324]
[1767105196135,0.01136157,88016.0,88003.0,0.01136324]
[1767105196509,0.01136208,88012.0,87995.0,0.01136428]
[1767105196717,0.81271897,88020.0,87991.0,0.23881454]
[1767105196922,1e-08,88025.0,88022.0,0.01136079]
[1767105197123,1e-08,88025.0,88020.0,0.00055]
[1767105197340,1e-08,88025.0,88019.0,0.01136118]
[1767105197540,1e-08,88025.0,88022.0,0.06816421]
[1767105197804,1e-08,88025.0,88019.0,0.01136118]
[1767105197941,1e-08,88025.0,88017.0,0.01136144]
[1767105198138,0.0003571,88025.0,88016.0,0.01152]
[1767105198456,0.01136066,88023.0,88002.0,0.20433631]
[1767105198677,0.0003571,88025.0,88002.0,0.20433631]
[1767105198678,0.01136169,88015.0,88002.0,0.01152]
[1767105198882,0.01136079,88022.0,88006.0,0.01136286]
[1767105199086,0.01136144,88017.0,88003.0,0.01136324]
[1767105199258,0.01136157,88016.0,88002.0,0.02288337]
[1767105199658,0.01136221,88011.0,88002.0,0.01152]
[1767105199861,0.01152,88018.0,87999.0,0.01152]
[1767105199862,0.01136208,88012.0,87999.0,0.01152]
[1767105200061,0.05680849,88015.0,87999.0,0.01152]
[1767105200238,0.01136182,88014.0,87999.0,0.02288376]
[1767105200437,0.01136182,88014.0,88000.0,0.01136363]
[1767105200638,0.01136221,88011.0,87999.0,0.01152]
[1767105200866,0.01136182,88014.0,88000.0,0.01136363]
[1767105201060,0.01136208,88012.0,87999.0,0.01152]
[1767105201261,0.01136208,88012.0,88000.0,0.01136363]
[1767105201466,0.01136221,88011.0,87999.0,0.01152]
[1767105201749,0.01136182,88014.0,88002.0,0.01136337]
[1767105201995,0.01136157,88016.0,88002.0,0.01136337]
[1767105202165,0.01136144,88017.0,88004.0,0.01136311]
[1767105202507,0.01152,88018.0,88006.0,0.01136286]
[1767105202657,0.0117175,88025.0,88017.0,0.00055]
[1767105202658,0.0003571,88025.0,88017.0,0.00055]
[1767105202863,0.0003571,88025.0,88014.0,0.01136182]
[1767105203262,0.0003571,88025.0,88014.0,0.06817096]
[1767105203450,0.0003571,88025.0,88013.0,0.01136195]
[1767105203451,0.0003571,88025.0,88020.0,0.01136105]
[1767105203649,1e-07,88025.0,88023.0,0.05680279]
[1767105204514,1e-07,88025.0,88022.0,0.01136079]
[1767105204719,1e-07,88025.0,88024.0,0.05680269]
[1767105204923,0.04544,88055.0,88036.0,0.05679434]
[1767105205151,0.04544,88055.0,88038.0,0.06620852]
[1767105205152,0.01152,88053.0,88038.0,0.06620852]
[1767105205363,0.01135692,88052.0,88039.0,0.0113586]
[1767105205592,0.01152,88053.0,88039.0,0.0113586]
[1767105205593,0.01152,88053.0,88040.0,0.01135847]
[1767105205766,0.01152,88053.0,88041.0,0.01135834]
[1767105205918,0.01152,88053.0,88040.0,0.01135847]
[1767105206123,0.02287679,88053.0,88038.0,0.01135873]
[1767105206333,0.01135731,88049.0,88034.0,0.01135924]
[1767105206532,0.01152,88053.0,88040.0,0.01135847]
[1767105206739,0.02287679,88053.0,88040.0,0.01135847]
[1767105207018,0.02287679,88053.0,88039.0,0.0113586]
[1767105207172,0.01135718,88050.0,88034.0,0.06815536]
[1767105207361,0.01135898,88036.0,88021.0,0.01136092]
[1767105207717,0.000356,88034.0,88026.0,0.02288027]
[1767105207934,0.01818792,88040.0,88026.0,0.01152]
[1767105208105,0.01135847,88040.0,88026.0,0.01152]
[1767105208280,0.01135821,88042.0,88026.0,0.02288027]
[1767105208463,0.01818792,88040.0,88028.0,0.01136002]
[1767105208670,0.000356,88028.0,88019.0,0.01136118]
[1767105208988,0.01135924,88034.0,88020.0,0.06816571]
[1767105209305,0.01135911,88035.0,88022.0,0.01136079]
[1767105209454,0.01135924,88034.0,88020.0,0.01136105]
[1767105209655,0.05679301,88039.0,88021.0,0.01136092]
[1767105209856,0.06814206,88052.0,88036.0,0.01135898]
[1767105210060,0.00010711,88054.0,88052.0,0.000193]
[1767105210259,0.0002,88056.0,88052.0,0.000193]
[1767105210508,0.0002,88056.0,88048.0,0.01135744]
[1767105210509,0.0002,88056.0,88049.0,0.01135731]
[1767105210651,0.0002,88056.0,88047.0,0.06814509]
[1767105210652,0.0002,88056.0,88047.0,0.01135757]
[1767105211020,0.0002,88056.0,88044.0,0.01135795]
[1767105211220,0.0002,88056.0,88044.0,0.00010711]
[1767105211420,0.00024889,88044.0,88029.0,0.01135989]
[1767105211647,0.06814883,88043.0,88029.0,0.01152]
[1767105211845,0.011465,88044.0,88029.0,0.01152]
[1767105211846,0.0567935,88039.0,88029.0,0.01152]
[1767105212076,0.011465,88044.0,88031.0,0.01135963]
[1767105212250,0.00010705,88044.0,88031.0,0.01135963]
[1767105212492,0.01135834,88041.0,88029.0,0.01152]
[1767105212759,0.01135808,88043.0,88029.0,0.02287989]
[1767105212909,0.011465,88044.0,88030.0,0.01135976]
[1767105213104,0.011465,88044.0,88029.0,0.07967917]
[1767105213105,0.01135821,88042.0,88029.0,0.01152]
[1767105213330,0.06825506,88044.0,88029.0,0.01152]
[1767105213539,0.01135808,88043.0,88029.0,0.01152]
[1767105213935,0.00010705,88044.0,88032.0,0.0113595]
[1767105214138,0.00010705,88044.0,88033.0,0.01135937]
[1767105214353,0.00010705,88044.0,88029.0,0.02287989]
[1767105214666,0.00010705,88044.0,88030.0,0.01135976]
[1767105214817,0.01135808,88043.0,88029.0,0.02287989]
[1767105215019,0.01135821,88042.0,88029.0,0.01152]
[1767105215239,0.01135847,88040.0,88029.0,0.01152]
[1767105215456,0.000249,88029.0,88023.0,0.01136066]
[1767105215661,0.01135834,88041.0,88026.0,0.06816161]
[1767105215947,0.01135847,88040.0,88025.0,0.0113604]
[1767105216169,0.00010705,88044.0,88032.0,0.0113595]